Workbook

Sheet Hướng dẫn
B2: DÒNG TIỀN CÁ NHÂN
B3: Sổ làm việc này có các trang tính dòng tiền hàng năm, hàng tháng và hàng ngày. Chọn loại dòng tiền phù hợp nhất với bạn hoặc sử dụng tất cả loại trên để giúp có được thông tin chuyên sâu về dòng tiền cá nhân của bạn.
B5: Dòng tiền hàng ngày | E5: Dòng tiền hàng tháng | H5: Dòng tiền hàng năm
B7: Nhập số tiền ước tính cho dòng tiền mà bạn ghi nhận hàng ngày và xem lại tổng ước tính hàng tháng và hàng năm. Sử dụng bảng này để hiểu được thói quen chi tiêu hàng ngày của bạn là như thế nào trong suốt một tháng hoặc một năm. | E7: Nhập dòng tiền hàng tháng mà bạn ghi nhận hàng tháng hoặc ước tính các tháng còn lại để biết dòng tiền dự kiến cho năm với từng tháng. | H7: Nhập số tiền dòng tiền hàng năm vào bốn trang tính: Thu nhập, Chi phí, Tự do và Tiết kiệm. Xem bảng phân tích hàng tháng và cách so sánh mọi thứ, quan trọng nhất là xem kết quả kinh doanh sau thuế của bạn dựa trên số liệu ở cả hai cột hàng tháng và hàng năm.

Sheet Dòng tiền hàng ngày
B1: DÒNG TIỀN CÁ NHÂN | F1: Hướng dẫn'!A1 | G1: Dòng tiền hàng tháng'!A1 | I1: Thu nhập'!A1
C2: Tổng tiền mặt sẵn dùng: | D2: =Dòng_tiền_hàng_ngày -> 577.84 ₫ | F2: LƯU Ý: Nếu bạn muốn thêm các mục hàng ngày vào Bảng, hãy ước tính số tiền/giá trị hàng tháng của chúng, rồi đặt giá trị vào cột tháng thích hợp.
B4: TÓM TẮT HÀNG NGÀY
B5: Tổng cộng | C5: Hàng ngày | D5: Hàng tháng | E5: Hàng năm
B6: Thu nhập | C6: =SUMIF(Hàng_ngày[Loại],$B6,Hàng_ngày[Hàng ngày]) -> 342.47 ₫ | D6: =SUMIF(Hàng_ngày[Loại],$B6,Hàng_ngày[Hàng tháng]) -> 10,416.80 ₫ | E6: =SUMIF(Hàng_ngày[Loại],$B6,Hàng_ngày[Hàng năm]) -> 125,001.55 ₫
B7: Chi phí | C7: =SUMIF(Hàng_ngày[Loại],$B7,Hàng_ngày[Hàng ngày]) -> 136.06 ₫ | D7: =SUMIF(Hàng_ngày[Loại],$B7,Hàng_ngày[Hàng tháng]) -> 4,138.49 ₫ | E7: =SUMIF(Hàng_ngày[Loại],$B7,Hàng_ngày[Hàng năm]) -> 49,661.90 ₫
B8: Tự do | C8: =SUMIF(Hàng_ngày[Loại],$B8,Hàng_ngày[Hàng ngày]) -> 36.29 ₫ | D8: =SUMIF(Hàng_ngày[Loại],$B8,Hàng_ngày[Hàng tháng]) -> 1,103.82 ₫ | E8: =SUMIF(Hàng_ngày[Loại],$B8,Hàng_ngày[Hàng năm]) -> 13,245.85 ₫
B9: Tiết kiệm | C9: =SUMIF(Hàng_ngày[Loại],$B9,Hàng_ngày[Hàng ngày]) -> 63.02 ₫ | D9: =SUMIF(Hàng_ngày[Loại],$B9,Hàng_ngày[Hàng tháng]) -> 1,916.86 ₫ | E9: =SUMIF(Hàng_ngày[Loại],$B9,Hàng_ngày[Hàng năm]) -> 23,002.30 ₫
B11: Loại | C11: Mô tả | D11: Hàng ngày | E11: Hàng tháng | F11: Hàng năm
B12: Thu nhập | C12: Tiền lương | D12: 246.58 ₫ | E12: =Hàng_ngày[[#This Row],[Hàng năm]]/12 -> 7,500.14 ₫ | F12: =Hàng_ngày[[#This Row],[Hàng ngày]]*365 -> 90,001.70 ₫
B13: Thu nhập | C13: Tiền hoa hồng/thưởng | D13: 13.70 ₫ | E13: =Hàng_ngày[[#This Row],[Hàng năm]]/12 -> 416.71 ₫ | F13: =Hàng_ngày[[#This Row],[Hàng ngày]]*365 -> 5,000.50 ₫
B14: Thu nhập | C14: Khác 1 | D14: 82.19 ₫ | E14: =Hàng_ngày[[#This Row],[Hàng năm]]/12 -> 2,499.95 ₫ | F14: =Hàng_ngày[[#This Row],[Hàng ngày]]*365 -> 29,999.35 ₫
B15: Thu nhập | C15: Khác 2 | D15: 0.00 ₫ | E15: =Hàng_ngày[[#This Row],[Hàng năm]]/12 -> 0.00 ₫ | F15: =Hàng_ngày[[#This Row],[Hàng ngày]]*365 -> 0.00 ₫
B16: Thu nhập | C16: Khác 3 | D16: 0.00 ₫ | E16: =Hàng_ngày[[#This Row],[Hàng năm]]/12 -> 0.00 ₫ | F16: =Hàng_ngày[[#This Row],[Hàng ngày]]*365 -> 0.00 ₫
B17: Thu nhập | C17: Khác 4 | D17: 0.00 ₫ | E17: =Hàng_ngày[[#This Row],[Hàng năm]]/12 -> 0.00 ₫ | F17: =Hàng_ngày[[#This Row],[Hàng ngày]]*365 -> 0.00 ₫
B18: Chi phí | C18: Liên bang/SS/Medicare | D18: 41.10 ₫ | E18: =Hàng_ngày[[#This Row],[Hàng năm]]/12 -> 1,250.13 ₫ | F18: =Hàng_ngày[[#This Row],[Hàng ngày]]*365 -> 15,001.50 ₫
B19: Chi phí | C19: Thuế thu nhập của tiểu bang | D19: 6.85 ₫ | E19: =Hàng_ngày[[#This Row],[Hàng năm]]/12 -> 208.35 ₫ | F19: =Hàng_ngày[[#This Row],[Hàng ngày]]*365 -> 2,500.25 ₫
B20: Chi phí | C20: Thuế/phí xe cộ | D20: 0.55 ₫ | E20: =Hàng_ngày[[#This Row],[Hàng năm]]/12 -> 16.73 ₫ | F20: =Hàng_ngày[[#This Row],[Hàng ngày]]*365 -> 200.75 ₫
B21: Chi phí | C21: Thanh toán cho xe cộ | D21: 10.96 ₫ | E21: =Hàng_ngày[[#This Row],[Hàng năm]]/12 -> 333.37 ₫ | F21: =Hàng_ngày[[#This Row],[Hàng ngày]]*365 -> 4,000.40 ₫
B22: Chi phí | C22: Tiền vay thế chấp/tiền thuê | D22: 41.10 ₫ | E22: =Hàng_ngày[[#This Row],[Hàng năm]]/12 -> 1,250.13 ₫ | F22: =Hàng_ngày[[#This Row],[Hàng ngày]]*365 -> 15,001.50 ₫
B23: Chi phí | C23: Bảo hiểm | D23: 0.68 ₫ | E23: =Hàng_ngày[[#This Row],[Hàng năm]]/12 -> 20.68 ₫ | F23: =Hàng_ngày[[#This Row],[Hàng ngày]]*365 -> 248.20 ₫
B24: Chi phí | C24: Điện | D24: 3.29 ₫ | E24: =Hàng_ngày[[#This Row],[Hàng năm]]/12 -> 100.07 ₫ | F24: =Hàng_ngày[[#This Row],[Hàng ngày]]*365 -> 1,200.85 ₫
B25: Chi phí | C25: Khí đốt | D25: 1.64 ₫ | E25: =Hàng_ngày[[#This Row],[Hàng năm]]/12 -> 49.88 ₫ | F25: =Hàng_ngày[[#This Row],[Hàng ngày]]*365 -> 598.60 ₫
B26: Chi phí | C26: Nước | D26: 1.64 ₫ | E26: =Hàng_ngày[[#This Row],[Hàng năm]]/12 -> 49.88 ₫ | F26: =Hàng_ngày[[#This Row],[Hàng ngày]]*365 -> 598.60 ₫
B27: Chi phí | C27: Rãnh thoát nước | D27: 0.82 ₫ | E27: =Hàng_ngày[[#This Row],[Hàng năm]]/12 -> 24.94 ₫ | F27: =Hàng_ngày[[#This Row],[Hàng ngày]]*365 -> 299.30 ₫
B28: Chi phí | C28: Rác | D28: 0.41 ₫ | E28: =Hàng_ngày[[#This Row],[Hàng năm]]/12 -> 12.47 ₫ | F28: =Hàng_ngày[[#This Row],[Hàng ngày]]*365 -> 149.65 ₫
B29: Chi phí | C29: Điện thoại | D29: 1.64 ₫ | E29: =Hàng_ngày[[#This Row],[Hàng năm]]/12 -> 49.88 ₫ | F29: =Hàng_ngày[[#This Row],[Hàng ngày]]*365 -> 598.60 ₫
B30: Chi phí | C30: Internet | D30: 1.64 ₫ | E30: =Hàng_ngày[[#This Row],[Hàng năm]]/12 -> 49.88 ₫ | F30: =Hàng_ngày[[#This Row],[Hàng ngày]]*365 -> 598.60 ₫
B31: Chi phí | C31: Bảo hiểm dành cho người khuyết tật | D31: 4.11 ₫ | E31: =Hàng_ngày[[#This Row],[Hàng năm]]/12 -> 125.01 ₫ | F31: =Hàng_ngày[[#This Row],[Hàng ngày]]*365 -> 1,500.15 ₫
B32: Chi phí | C32: Thực phẩm | D32: 13.70 ₫ | E32: =Hàng_ngày[[#This Row],[Hàng năm]]/12 -> 416.71 ₫ | F32: =Hàng_ngày[[#This Row],[Hàng ngày]]*365 -> 5,000.50 ₫
B33: Chi phí | C33: Trang phục | D33: 3.29 ₫ | E33: =Hàng_ngày[[#This Row],[Hàng năm]]/12 -> 100.07 ₫ | F33: =Hàng_ngày[[#This Row],[Hàng ngày]]*365 -> 1,200.85 ₫
B34: Chi phí | C34: Y tế/Nha khoa/Rx | D34: 1.64 ₫ | E34: =Hàng_ngày[[#This Row],[Hàng năm]]/12 -> 49.88 ₫ | F34: =Hàng_ngày[[#This Row],[Hàng ngày]]*365 -> 598.60 ₫
B35: Chi phí | C35: Xe buýt | D35: 1.00 ₫ | E35: =Hàng_ngày[[#This Row],[Hàng năm]]/12 -> 30.42 ₫ | F35: =Hàng_ngày[[#This Row],[Hàng ngày]]*365 -> 365.00 ₫
B36: Chi phí | C36: Khác 2 | D36: 0.00 ₫ | E36: =Hàng_ngày[[#This Row],[Hàng năm]]/12 -> 0.00 ₫ | F36: =Hàng_ngày[[#This Row],[Hàng ngày]]*365 -> 0.00 ₫
B37: Chi phí | C37: Khác 3 | D37: 0.00 ₫ | E37: =Hàng_ngày[[#This Row],[Hàng năm]]/12 -> 0.00 ₫ | F37: =Hàng_ngày[[#This Row],[Hàng ngày]]*365 -> 0.00 ₫
B38: Chi phí | C38: Khác 4 | D38: 0.00 ₫ | E38: =Hàng_ngày[[#This Row],[Hàng năm]]/12 -> 0.00 ₫ | F38: =Hàng_ngày[[#This Row],[Hàng ngày]]*365 -> 0.00 ₫
B39: Tự do | C39: Ăn tối | D39: 3.29 ₫ | E39: =Hàng_ngày[[#This Row],[Hàng năm]]/12 -> 100.07 ₫ | F39: =Hàng_ngày[[#This Row],[Hàng ngày]]*365 -> 1,200.85 ₫
B40: Tự do | C40: Quà tặng | D40: 1.64 ₫ | E40: =Hàng_ngày[[#This Row],[Hàng năm]]/12 -> 49.88 ₫ | F40: =Hàng_ngày[[#This Row],[Hàng ngày]]*365 -> 598.60 ₫
B41: Tự do | C41: Đi lại | D41: 6.16 ₫ | E41: =Hàng_ngày[[#This Row],[Hàng năm]]/12 -> 187.37 ₫ | F41: =Hàng_ngày[[#This Row],[Hàng ngày]]*365 -> 2,248.40 ₫
B42: Tự do | C42: Giải trí | D42: 3.29 ₫ | E42: =Hàng_ngày[[#This Row],[Hàng năm]]/12 -> 100.07 ₫ | F42: =Hàng_ngày[[#This Row],[Hàng ngày]]*365 -> 1,200.85 ₫
B43: Tự do | C43: Chăm sóc cá nhân | D43: 0.82 ₫ | E43: =Hàng_ngày[[#This Row],[Hàng năm]]/12 -> 24.94 ₫ | F43: =Hàng_ngày[[#This Row],[Hàng ngày]]*365 -> 299.30 ₫
B44: Tự do | C44: Mua sắm | D44: 5.48 ₫ | E44: =Hàng_ngày[[#This Row],[Hàng năm]]/12 -> 166.68 ₫ | F44: =Hàng_ngày[[#This Row],[Hàng ngày]]*365 -> 2,000.20 ₫
B45: Tự do | C45: Khoản từ thiện | D45: 1.64 ₫ | E45: =Hàng_ngày[[#This Row],[Hàng năm]]/12 -> 49.88 ₫ | F45: =Hàng_ngày[[#This Row],[Hàng ngày]]*365 -> 598.60 ₫
B46: Tự do | C46: Câu lạc bộ/Tư cách thành viên | D46: 0.82 ₫ | E46: =Hàng_ngày[[#This Row],[Hàng năm]]/12 -> 24.94 ₫ | F46: =Hàng_ngày[[#This Row],[Hàng ngày]]*365 -> 299.30 ₫
B47: Tự do | C47: Cải tạo nhà | D47: 13.15 ₫ | E47: =Hàng_ngày[[#This Row],[Hàng năm]]/12 -> 399.98 ₫ | F47: =Hàng_ngày[[#This Row],[Hàng ngày]]*365 -> 4,799.75 ₫
B48: Tự do | C48: Khác 1 | D48: 0.00 ₫ | E48: =Hàng_ngày[[#This Row],[Hàng năm]]/12 -> 0.00 ₫ | F48: =Hàng_ngày[[#This Row],[Hàng ngày]]*365 -> 0.00 ₫
B49: Tự do | C49: Khác 2 | D49: 0.00 ₫ | E49: =Hàng_ngày[[#This Row],[Hàng năm]]/12 -> 0.00 ₫ | F49: =Hàng_ngày[[#This Row],[Hàng ngày]]*365 -> 0.00 ₫
B50: Tiết kiệm | C50: Dự trữ tiền mặt | D50: 13.70 ₫ | E50: =Hàng_ngày[[#This Row],[Hàng năm]]/12 -> 416.71 ₫ | F50: =Hàng_ngày[[#This Row],[Hàng ngày]]*365 -> 5,000.50 ₫
B51: Tiết kiệm | C51: 401(k)/Etc | D51: 32.88 ₫ | E51: =Hàng_ngày[[#This Row],[Hàng năm]]/12 -> 1,000.10 ₫ | F51: =Hàng_ngày[[#This Row],[Hàng ngày]]*365 -> 12,001.20 ₫
B52: Tiết kiệm | C52: Tài khoản tiết kiệm | D52: 16.44 ₫ | E52: =Hàng_ngày[[#This Row],[Hàng năm]]/12 -> 500.05 ₫ | F52: =Hàng_ngày[[#This Row],[Hàng ngày]]*365 -> 6,000.60 ₫
B53: Tiết kiệm | C53: Khác 1 | D53: 0.00 ₫ | E53: =Hàng_ngày[[#This Row],[Hàng năm]]/12 -> 0.00 ₫ | F53: =Hàng_ngày[[#This Row],[Hàng ngày]]*365 -> 0.00 ₫
B54: Tiết kiệm | C54: Khác 2 | D54: 0.00 ₫ | E54: =Hàng_ngày[[#This Row],[Hàng năm]]/12 -> 0.00 ₫ | F54: =Hàng_ngày[[#This Row],[Hàng ngày]]*365 -> 0.00 ₫
B55: Tổng | D55: =SUMIF(Hàng_ngày[Loại],"Thu nhập",Hàng_ngày[Hàng ngày])-SUMIF(Hàng_ngày[Loại],"<>Thu nhập",Hàng_ngày[Hàng ngày]) -> 107.10 ₫ | E55: =SUMIF(Hàng_ngày[Loại],"Thu nhập",Hàng_ngày[Hàng tháng])-SUMIF(Hàng_ngày[Loại],"<>Thu nhập",Hàng_ngày[Hàng tháng]) -> 3,257.63 ₫ | F55: =SUMIF(Hàng_ngày[Loại],"Thu nhập",Hàng_ngày[Hàng năm])-SUMIF(Hàng_ngày[Loại],"<>Thu nhập",Hàng_ngày[Hàng năm]) -> 39,091.50 ₫

Sheet Dòng tiền hàng tháng
B1: DÒNG TIỀN CÁ NHÂN | H1: Hướng dẫn'!A1 | I1: Dòng tiền hàng năm'!A1 | J1: Dòng tiền hàng tháng'!A1
C2: Tổng dòng tiền hàng tháng: | D2: =Dòng_tiền_hàng_tháng_cho_đến_nay -> 18,380.00 ₫ | F2: LƯU Ý: Với các mục hàng ngày, hãy ước tính số tiền/giá trị hàng tháng, rồi đặt giá trị đó vào cột tháng thích hợp.
B4: Loại | C4: Mô tả | D4: Thg1 | E4: Thg2 | F4: Thg3 | G4: Thg4 | H4: Thg5 | I4: Thg6 | J4: Thg7 | K4: Thg8 | L4: Thg9 | M4: Thg10 | N4: Thg11 | O4: Thg12 | P4: Tổng
B5: Thu nhập | C5: Tiền lương | D5: 7,500.00 ₫ | E5: 7,500.00 ₫ | F5: 7,500.00 ₫ | G5: 7,500.00 ₫ | H5: 7,500.00 ₫ | I5: 7,500.00 ₫ | P5: =SUM(Hàng_tháng[[#This Row],[Thg1]:[Thg12]]) -> 45,000.00 ₫
B6: Thu nhập | C6: Tiền hoa hồng/thưởng | D6: 400.00 ₫ | E6: 400.00 ₫ | F6: 500.00 ₫ | G6: 200.00 ₫ | H6: 0.00 ₫ | I6: 600.00 ₫ | P6: =SUM(Hàng_tháng[[#This Row],[Thg1]:[Thg12]]) -> 2,100.00 ₫
B7: Thu nhập | C7: Khác 1 | D7: 2,500.00 ₫ | E7: 2,500.00 ₫ | F7: 2,500.00 ₫ | G7: 2,500.00 ₫ | H7: 2,500.00 ₫ | I7: 2,500.00 ₫ | P7: =SUM(Hàng_tháng[[#This Row],[Thg1]:[Thg12]]) -> 15,000.00 ₫
B8: Thu nhập | C8: Khác 2 | D8: 0.00 ₫ | E8: 0.00 ₫ | F8: 0.00 ₫ | G8: 0.00 ₫ | H8: 0.00 ₫ | I8: 0.00 ₫ | P8: =SUM(Hàng_tháng[[#This Row],[Thg1]:[Thg12]]) -> 0.00 ₫
B9: Thu nhập | C9: Khác 3 | D9: 0.00 ₫ | E9: 0.00 ₫ | F9: 0.00 ₫ | G9: 0.00 ₫ | H9: 0.00 ₫ | I9: 0.00 ₫ | P9: =SUM(Hàng_tháng[[#This Row],[Thg1]:[Thg12]]) -> 0.00 ₫
B10: Thu nhập | C10: Khác 4 | D10: 0.00 ₫ | E10: 0.00 ₫ | F10: 0.00 ₫ | G10: 0.00 ₫ | H10: 0.00 ₫ | I10: 0.00 ₫ | P10: =SUM(Hàng_tháng[[#This Row],[Thg1]:[Thg12]]) -> 0.00 ₫
B11: Chi phí | C11: Liên bang/SS/Medicare | D11: 1,250.00 ₫ | E11: 1,250.00 ₫ | F11: 1,250.00 ₫ | G11: 1,250.00 ₫ | H11: 1,250.00 ₫ | I11: 1,250.00 ₫ | P11: =SUM(Hàng_tháng[[#This Row],[Thg1]:[Thg12]]) -> 7,500.00 ₫
B12: Chi phí | C12: Thuế thu nhập của tiểu bang | D12: 208.33 ₫ | E12: 208.33 ₫ | F12: 208.33 ₫ | G12: 208.33 ₫ | H12: 208.33 ₫ | I12: 208.33 ₫ | P12: =SUM(Hàng_tháng[[#This Row],[Thg1]:[Thg12]]) -> 1,250.00 ₫
B13: Chi phí | C13: Thuế/phí xe cộ | D13: 16.67 ₫ | E13: 16.67 ₫ | F13: 16.67 ₫ | G13: 16.67 ₫ | H13: 16.67 ₫ | I13: 16.67 ₫ | P13: =SUM(Hàng_tháng[[#This Row],[Thg1]:[Thg12]]) -> 100.00 ₫
B14: Chi phí | C14: Thanh toán cho xe cộ | D14: 333.33 ₫ | E14: 333.33 ₫ | F14: 333.33 ₫ | G14: 333.33 ₫ | H14: 333.33 ₫ | I14: 333.33 ₫ | P14: =SUM(Hàng_tháng[[#This Row],[Thg1]:[Thg12]]) -> 2,000.00 ₫
B15: Chi phí | C15: Tiền vay thế chấp/tiền thuê | D15: 1,250.00 ₫ | E15: 1,250.00 ₫ | F15: 1,250.00 ₫ | G15: 1,250.00 ₫ | H15: 1,250.00 ₫ | I15: 1,250.00 ₫ | P15: =SUM(Hàng_tháng[[#This Row],[Thg1]:[Thg12]]) -> 7,500.00 ₫
B16: Chi phí | C16: Bảo hiểm | D16: 25.00 ₫ | E16: 25.00 ₫ | F16: 25.00 ₫ | G16: 25.00 ₫ | H16: 25.00 ₫ | I16: 25.00 ₫ | P16: =SUM(Hàng_tháng[[#This Row],[Thg1]:[Thg12]]) -> 150.00 ₫
B17: Chi phí | C17: Điện | D17: 100.00 ₫ | E17: 100.00 ₫ | F17: 100.00 ₫ | G17: 100.00 ₫ | H17: 100.00 ₫ | I17: 100.00 ₫ | P17: =SUM(Hàng_tháng[[#This Row],[Thg1]:[Thg12]]) -> 600.00 ₫
B18: Chi phí | C18: Khí đốt | D18: 50.00 ₫ | E18: 50.00 ₫ | F18: 50.00 ₫ | G18: 50.00 ₫ | H18: 50.00 ₫ | I18: 50.00 ₫ | P18: =SUM(Hàng_tháng[[#This Row],[Thg1]:[Thg12]]) -> 300.00 ₫
B19: Chi phí | C19: Nước | D19: 50.00 ₫ | E19: 50.00 ₫ | F19: 50.00 ₫ | G19: 50.00 ₫ | H19: 50.00 ₫ | I19: 50.00 ₫ | P19: =SUM(Hàng_tháng[[#This Row],[Thg1]:[Thg12]]) -> 300.00 ₫
B20: Chi phí | C20: Rãnh thoát nước | D20: 25.00 ₫ | E20: 25.00 ₫ | F20: 25.00 ₫ | G20: 25.00 ₫ | H20: 25.00 ₫ | I20: 25.00 ₫ | P20: =SUM(Hàng_tháng[[#This Row],[Thg1]:[Thg12]]) -> 150.00 ₫
B21: Chi phí | C21: Rác | D21: 12.50 ₫ | E21: 12.50 ₫ | F21: 12.50 ₫ | G21: 12.50 ₫ | H21: 12.50 ₫ | I21: 12.50 ₫ | P21: =SUM(Hàng_tháng[[#This Row],[Thg1]:[Thg12]]) -> 75.00 ₫
B22: Chi phí | C22: Điện thoại | D22: 50.00 ₫ | E22: 50.00 ₫ | F22: 50.00 ₫ | G22: 50.00 ₫ | H22: 50.00 ₫ | I22: 50.00 ₫ | P22: =SUM(Hàng_tháng[[#This Row],[Thg1]:[Thg12]]) -> 300.00 ₫
B23: Chi phí | C23: Internet | D23: 50.00 ₫ | E23: 50.00 ₫ | F23: 50.00 ₫ | G23: 50.00 ₫ | H23: 50.00 ₫ | I23: 50.00 ₫ | P23: =SUM(Hàng_tháng[[#This Row],[Thg1]:[Thg12]]) -> 300.00 ₫
B24: Chi phí | C24: Bảo hiểm dành cho người khuyết tật | D24: 125.00 ₫ | E24: 125.00 ₫ | F24: 125.00 ₫ | G24: 125.00 ₫ | H24: 125.00 ₫ | I24: 125.00 ₫ | P24: =SUM(Hàng_tháng[[#This Row],[Thg1]:[Thg12]]) -> 750.00 ₫
B25: Chi phí | C25: Thực phẩm | D25: 400.00 ₫ | E25: 500.00 ₫ | F25: 450.00 ₫ | G25: 400.00 ₫ | H25: 450.00 ₫ | I25: 425.00 ₫ | P25: =SUM(Hàng_tháng[[#This Row],[Thg1]:[Thg12]]) -> 2,625.00 ₫
B26: Chi phí | C26: Trang phục | D26: 50.00 ₫ | E26: 75.00 ₫ | F26: 100.00 ₫ | G26: 75.00 ₫ | H26: 125.00 ₫ | I26: 75.00 ₫ | P26: =SUM(Hàng_tháng[[#This Row],[Thg1]:[Thg12]]) -> 500.00 ₫
B27: Chi phí | C27: Y tế/Nha khoa/Rx | D27: 50.00 ₫ | E27: 10.00 ₫ | F27: 25.00 ₫ | G27: 25.00 ₫ | H27: 20.00 ₫ | I27: 70.00 ₫ | P27: =SUM(Hàng_tháng[[#This Row],[Thg1]:[Thg12]]) -> 200.00 ₫
B28: Chi phí | C28: Xe buýt | D28: 30.00 ₫ | E28: 30.00 ₫ | F28: 30.00 ₫ | G28: 20.00 ₫ | H28: 30.00 ₫ | I28: 30.00 ₫ | P28: =SUM(Hàng_tháng[[#This Row],[Thg1]:[Thg12]]) -> 170.00 ₫
B29: Chi phí | C29: Khác 2 | D29: 0.00 ₫ | E29: 0.00 ₫ | F29: 0.00 ₫ | G29: 0.00 ₫ | H29: 0.00 ₫ | I29: 0.00 ₫ | P29: =SUM(Hàng_tháng[[#This Row],[Thg1]:[Thg12]]) -> 0.00 ₫
B30: Chi phí | C30: Khác 3 | D30: 0.00 ₫ | E30: 0.00 ₫ | F30: 0.00 ₫ | G30: 0.00 ₫ | H30: 0.00 ₫ | I30: 0.00 ₫ | P30: =SUM(Hàng_tháng[[#This Row],[Thg1]:[Thg12]]) -> 0.00 ₫
B31: Chi phí | C31: Khác 4 | D31: 0.00 ₫ | E31: 0.00 ₫ | F31: 0.00 ₫ | G31: 0.00 ₫ | H31: 0.00 ₫ | I31: 0.00 ₫ | P31: =SUM(Hàng_tháng[[#This Row],[Thg1]:[Thg12]]) -> 0.00 ₫
B32: Tự do | C32: Ăn tối | D32: 50.00 ₫ | E32: 150.00 ₫ | F32: 100.00 ₫ | G32: 50.00 ₫ | H32: 150.00 ₫ | I32: 100.00 ₫ | P32: =SUM(Hàng_tháng[[#This Row],[Thg1]:[Thg12]]) -> 600.00 ₫
B33: Tự do | C33: Quà tặng | D33: 25.00 ₫ | E33: 75.00 ₫ | F33: 50.00 ₫ | G33: 25.00 ₫ | H33: 75.00 ₫ | I33: 50.00 ₫ | P33: =SUM(Hàng_tháng[[#This Row],[Thg1]:[Thg12]]) -> 300.00 ₫
B34: Tự do | C34: Đi lại | D34: 0.00 ₫ | E34: 0.00 ₫ | F34: 1,000.00 ₫ | G34: 0.00 ₫ | H34: 0.00 ₫ | I34: 1,000.00 ₫ | P34: =SUM(Hàng_tháng[[#This Row],[Thg1]:[Thg12]]) -> 2,000.00 ₫
B35: Tự do | C35: Giải trí | D35: 50.00 ₫ | E35: 150.00 ₫ | F35: 100.00 ₫ | G35: 50.00 ₫ | H35: 150.00 ₫ | I35: 100.00 ₫ | P35: =SUM(Hàng_tháng[[#This Row],[Thg1]:[Thg12]]) -> 600.00 ₫
B36: Tự do | C36: Chăm sóc cá nhân | D36: 15.00 ₫ | E36: 25.00 ₫ | F36: 35.00 ₫ | G36: 15.00 ₫ | H36: 25.00 ₫ | I36: 35.00 ₫ | P36: =SUM(Hàng_tháng[[#This Row],[Thg1]:[Thg12]]) -> 150.00 ₫
B37: Tự do | C37: Mua sắm | D37: 100.00 ₫ | E37: 200.00 ₫ | F37: 150.00 ₫ | G37: 175.00 ₫ | H37: 150.00 ₫ | I37: 175.00 ₫ | P37: =SUM(Hàng_tháng[[#This Row],[Thg1]:[Thg12]]) -> 950.00 ₫
B38: Tự do | C38: Khoản từ thiện | D38: 50.00 ₫ | E38: 50.00 ₫ | F38: 50.00 ₫ | G38: 50.00 ₫ | H38: 50.00 ₫ | I38: 50.00 ₫ | P38: =SUM(Hàng_tháng[[#This Row],[Thg1]:[Thg12]]) -> 300.00 ₫
B39: Tự do | C39: Câu lạc bộ/Tư cách thành viên | D39: 25.00 ₫ | E39: 25.00 ₫ | F39: 25.00 ₫ | G39: 25.00 ₫ | H39: 25.00 ₫ | I39: 25.00 ₫ | P39: =SUM(Hàng_tháng[[#This Row],[Thg1]:[Thg12]]) -> 150.00 ₫
B40: Tự do | C40: Cải tạo nhà | D40: 400.00 ₫ | E40: 400.00 ₫ | F40: 400.00 ₫ | G40: 400.00 ₫ | H40: 400.00 ₫ | I40: 400.00 ₫ | P40: =SUM(Hàng_tháng[[#This Row],[Thg1]:[Thg12]]) -> 2,400.00 ₫
B41: Tự do | C41: Khác 1 | D41: 0.00 ₫ | E41: 0.00 ₫ | F41: 0.00 ₫ | G41: 0.00 ₫ | H41: 0.00 ₫ | I41: 0.00 ₫ | P41: =SUM(Hàng_tháng[[#This Row],[Thg1]:[Thg12]]) -> 0.00 ₫
B42: Tự do | C42: Khác 2 | D42: 0.00 ₫ | E42: 0.00 ₫ | F42: 0.00 ₫ | G42: 0.00 ₫ | H42: 0.00 ₫ | I42: 0.00 ₫ | P42: =SUM(Hàng_tháng[[#This Row],[Thg1]:[Thg12]]) -> 0.00 ₫
B43: Tiết kiệm | C43: Dự trữ tiền mặt | D43: 416.67 ₫ | E43: 416.67 ₫ | F43: 416.67 ₫ | G43: 416.67 ₫ | H43: 416.67 ₫ | I43: 416.67 ₫ | P43: =SUM(Hàng_tháng[[#This Row],[Thg1]:[Thg12]]) -> 2,500.00 ₫
B44: Tiết kiệm | C44: 401(k)/Etc | D44: 1,000.00 ₫ | E44: 1,000.00 ₫ | F44: 1,000.00 ₫ | G44: 1,000.00 ₫ | H44: 1,000.00 ₫ | I44: 1,000.00 ₫ | P44: =SUM(Hàng_tháng[[#This Row],[Thg1]:[Thg12]]) -> 6,000.00 ₫
B45: Tiết kiệm | C45: Tài khoản tiết kiệm | D45: 500.00 ₫ | E45: 500.00 ₫ | F45: 500.00 ₫ | G45: 500.00 ₫ | H45: 500.00 ₫ | I45: 500.00 ₫ | P45: =SUM(Hàng_tháng[[#This Row],[Thg1]:[Thg12]]) -> 3,000.00 ₫
B46: Tiết kiệm | C46: Khác 1 | D46: 0.00 ₫ | E46: 0.00 ₫ | F46: 0.00 ₫ | G46: 0.00 ₫ | H46: 0.00 ₫ | I46: 0.00 ₫ | P46: =SUM(Hàng_tháng[[#This Row],[Thg1]:[Thg12]]) -> 0.00 ₫
B47: Tiết kiệm | C47: Khác 2 | D47: 0.00 ₫ | E47: 0.00 ₫ | F47: 0.00 ₫ | G47: 0.00 ₫ | H47: 0.00 ₫ | I47: 0.00 ₫ | P47: =SUM(Hàng_tháng[[#This Row],[Thg1]:[Thg12]]) -> 0.00 ₫
B48: Tổng | D48: =SUMIF(Hàng_tháng[Loại],"Thu nhập",Hàng_tháng[Thg1])-SUMIF(Hàng_tháng[Loại],"<>Thu nhập",Hàng_tháng[Thg1]) -> 3,692.50 ₫ | E48: =SUMIF(Hàng_tháng[Loại],"Thu nhập",Hàng_tháng[Thg2])-SUMIF(Hàng_tháng[Loại],"<>Thu nhập",Hàng_tháng[Thg2]) -> 3,247.50 ₫ | F48: =SUMIF(Hàng_tháng[Loại],"Thu nhập",Hàng_tháng[Thg3])-SUMIF(Hàng_tháng[Loại],"<>Thu nhập",Hàng_tháng[Thg3]) -> 2,522.50 ₫ | G48: =SUMIF(Hàng_tháng[Loại],"Thu nhập",Hàng_tháng[Thg4])-SUMIF(Hàng_tháng[Loại],"<>Thu nhập",Hàng_tháng[Thg4]) -> 3,427.50 ₫ | H48: =SUMIF(Hàng_tháng[Loại],"Thu nhập",Hàng_tháng[Thg5])-SUMIF(Hàng_tháng[Loại],"<>Thu nhập",Hàng_tháng[Thg5]) -> 2,887.50 ₫ | I48: =SUMIF(Hàng_tháng[Loại],"Thu nhập",Hàng_tháng[Thg6])-SUMIF(Hàng_tháng[Loại],"<>Thu nhập",Hàng_tháng[Thg6]) -> 2,602.50 ₫ | J48: =SUMIF(Hàng_tháng[Loại],"Thu nhập",Hàng_tháng[Thg7])-SUMIF(Hàng_tháng[Loại],"<>Thu nhập",Hàng_tháng[Thg7]) -> 0.00 ₫ | K48: =SUMIF(Hàng_tháng[Loại],"Thu nhập",Hàng_tháng[Thg8])-SUMIF(Hàng_tháng[Loại],"<>Thu nhập",Hàng_tháng[Thg8]) -> 0.00 ₫ | L48: =SUMIF(Hàng_tháng[Loại],"Thu nhập",Hàng_tháng[Thg9])-SUMIF(Hàng_tháng[Loại],"<>Thu nhập",Hàng_tháng[Thg9]) -> 0.00 ₫ | M48: =SUMIF(Hàng_tháng[Loại],"Thu nhập",Hàng_tháng[Thg10])-SUMIF(Hàng_tháng[Loại],"<>Thu nhập",Hàng_tháng[Thg10]) -> 0.00 ₫ | N48: =SUMIF(Hàng_tháng[Loại],"Thu nhập",Hàng_tháng[Thg11])-SUMIF(Hàng_tháng[Loại],"<>Thu nhập",Hàng_tháng[Thg11]) -> 0.00 ₫ | O48: =SUMIF(Hàng_tháng[Loại],"Thu nhập",Hàng_tháng[Thg12])-SUMIF(Hàng_tháng[Loại],"<>Thu nhập",Hàng_tháng[Thg12]) -> 0.00 ₫ | P48: =SUMIF(Hàng_tháng[Loại],"Thu nhập",Hàng_tháng[Tổng])-SUMIF(Hàng_tháng[Loại],"<>Thu nhập",Hàng_tháng[Tổng]) -> 18,380.00 ₫

Sheet Dòng tiền hàng năm
B1: DÒNG TIỀN CÁ NHÂN | H1: Dòng tiền hàng năm'!A1 | J1: Hướng dẫn'!A1 | L1: Dòng tiền hàng tháng'!A1
C2: Tổng dòng tiền tính đến hiện tại: | D2: =Dòng_tiền_hàng_năm_cho_đến_nay -> 42,250.00 ₫ | G2: Đây là ước tính hàng năm. Sử dụng trang tính này nếu bạn muốn xem số tiền hàng năm với giá trị ước tính hàng tháng. Sử dụng các trang tính Thu nhập, Chi phí, Tự do và Tiết kiệm để nhập các mục.
B4: TÓM TẮT THU NHẬP | F4: TÓM TẮT CHI PHÍ | J4: TÓM TẮT TỰ DO | N4: TÓM TẮT KHOẢN TIẾT KIỆM
B5: Tổng hàng năm: | C5: ='Thu nhập'!C11 -> 125,000.00 ₫ | F5: Tổng hàng năm: | G5: =Chi_phí[[#Totals],[Hàng năm ]] -> 46,500.00 ₫ | J5: Tổng hàng năm: | K5: =Tự_do[[#Totals],[Hàng năm ]] -> 13,250.00 ₫ | N5: Tổng hàng năm: | O5: =Tiết_kiệm[[#Totals],[Hàng năm ]] -> 23,000.00 ₫
B8: Tổng hàng tháng: | C8: ='Thu nhập'!D11 -> 10,416.67 ₫ | F8: Tổng hàng tháng: | G8: =Chi_phí[[#Totals],[Hàng tháng ]] -> 3,875.00 ₫ | J8: Tổng hàng tháng: | K8: =Tự_do[[#Totals],[Hàng tháng ]] -> 1,104.17 ₫ | N8: Tổng hàng tháng: | O8: ='Tiết kiệm'!D10 -> 1,916.67 ₫
R10: Row Labels | S10: Thu nhập hàng năm | U10: Row Labels | V10: Sum of Hàng năm | X10: Row Labels | Y10: Sum of Hàng năm | AA10: Row Labels | AB10: Sum of Hàng năm
R11: Khác 3 | S11: 0 ₫ | U11: Khác 2 | V11: 0 ₫ | X11: Khác 2 | Y11: 0 ₫ | AA11: Khác 1 | AB11: 0 ₫
R12: Khác 4 | S12: 0 ₫ | U12: Khác 1 | V12: 0 ₫ | X12: Khác 1 | Y12: 0 ₫ | AA12: Khác 2 | AB12: 0 ₫
R13: Khác 2 | S13: 0 ₫ | U13: Rác | V13: 150 ₫ | X13: Chăm sóc cá nhân | Y13: 300 ₫ | AA13: Dự trữ tiền mặt | AB13: 5,000 ₫
R14: Tiền hoa hồng/thưởng | S14: 5,000 ₫ | U14: Thuế/phí xe cộ | V14: 200 ₫ | X14: Câu lạc bộ/Tư cách thành viên | Y14: 300 ₫ | AA14: Khoản tiết kiệm/đầu tư | AB14: 6,000 ₫
R15: Khác 1 | S15: 30,000 ₫ | U15: Bảo hiểm | V15: 250 ₫ | X15: Quà tặng | Y15: 600 ₫ | AA15: 401(k)/Etc | AB15: 12,000 ₫
R16: Tiền lương | S16: 90,000 ₫ | U16: Khí đốt | V16: 600 ₫ | X16: Khoản từ thiện | Y16: 600 ₫ | AA16: Grand Total | AB16: 23,000 ₫
R17: Grand Total | S17: 125,000 ₫ | U17: Internet | V17: 600 ₫ | X17: Giải trí | Y17: 1,200 ₫
U18: Điện thoại | V18: 600 ₫ | X18: Ăn tối | Y18: 1,200 ₫
U19: Y tế/Nha khoa/Rx | V19: 600 ₫ | X19: Mua sắm | Y19: 2,000 ₫
U20: Nước/rãnh thoát nước | V20: 600 ₫ | X20: Đi lại | Y20: 2,250 ₫
U21: Điện | V21: 1,200 ₫ | X21: Cải tạo nhà | Y21: 4,800 ₫
U22: Trang phục | V22: 1,200 ₫ | X22: Grand Total | Y22: 13,250 ₫
U23: Bảo hiểm dành cho người khuyết tật | V23: 1,500 ₫
U24: Thuế thu nhập của tiểu bang | V24: 2,500 ₫
U25: Thanh toán cho xe cộ | V25: 4,000 ₫
U26: Thực phẩm | V26: 5,000 ₫
U27: Liên bang/SS/Medicare | V27: 12,500 ₫
U28: Tiền vay thế chấp/tiền thuê | V28: 15,000 ₫
U29: Grand Total | V29: 46,500 ₫

Sheet Thu nhập
B1: DÒNG TIỀN CÁ NHÂN | F1: Hướng dẫn'!A1 | H1: Thu nhập'!A1 | I1: Chi phí'!A1
C2: Tổng dòng tiền tính đến hiện tại: | D2: =Dòng_tiền_hàng_năm_cho_đến_nay -> 42,250.00 ₫ | F2: Đây là ước tính hàng năm. Sử dụng trang tính này nếu bạn muốn xem số tiền hàng năm với giá trị ước tính hàng tháng. Nếu bạn muốn thêm các mục hàng ngày vào Bảng, hãy ước tính số tiền/giá trị hàng năm của chúng, rồi đặt giá trị vào cột Hàng năm.
B4: Thu nhập | C4: Hàng năm | D4: Hàng tháng
B5: Tiền lương | C5: 90,000.00 ₫ | D5: =Thu_nhập[[#This Row],[Hàng năm ]]/12 -> 7,500.00 ₫
B6: Tiền hoa hồng/thưởng | C6: 5,000.00 ₫ | D6: =Thu_nhập[[#This Row],[Hàng năm ]]/12 -> 416.67 ₫
B7: Khác 1 | C7: 30,000.00 ₫ | D7: =Thu_nhập[[#This Row],[Hàng năm ]]/12 -> 2,500.00 ₫
B8: Khác 2 | C8: 0.00 ₫ | D8: =Thu_nhập[[#This Row],[Hàng năm ]]/12 -> 0.00 ₫
B9: Khác 3 | C9: 0.00 ₫ | D9: =Thu_nhập[[#This Row],[Hàng năm ]]/12 -> 0.00 ₫
B10: Khác 4 | C10: 0.00 ₫ | D10: =Thu_nhập[[#This Row],[Hàng năm ]]/12 -> 0.00 ₫
B11: Tổng | C11: =SUBTOTAL(109,Thu_nhập[[Hàng năm ]]) -> 125,000.00 ₫ | D11: =SUBTOTAL(109,Thu_nhập[[Hàng tháng ]]) -> 10,416.67 ₫

Sheet Chi phí
B1: DÒNG TIỀN CÁ NHÂN | F1: Hướng dẫn'!A1 | G1: Thu nhập'!A1 | H1: Chi phí'!A1 | I1: Tự do'!A1
C2: Tổng dòng tiền tính đến hiện tại: | D2: =Dòng_tiền_hàng_năm_cho_đến_nay -> 42,250.00 ₫ | F2: Đây là ước tính hàng năm. Sử dụng trang tính này nếu bạn muốn xem số tiền hàng năm với giá trị ước tính hàng tháng Nếu bạn muốn thêm các mục hàng ngày vào Bảng, hãy ước tính số tiền/giá trị hàng năm của chúng, rồi đặt giá trị vào cột Hàng năm.
B4: Chi phí | C4: Hàng năm | D4: Hàng tháng
B5: Liên bang/SS/Medicare | C5: 12,500.00 ₫ | D5: =Chi_phí[[#This Row],[Hàng năm ]]/12 -> 1,041.67 ₫
B6: Thuế thu nhập của tiểu bang | C6: 2,500.00 ₫ | D6: =Chi_phí[[#This Row],[Hàng năm ]]/12 -> 208.33 ₫
B7: Thuế/phí xe cộ | C7: 200.00 ₫ | D7: =Chi_phí[[#This Row],[Hàng năm ]]/12 -> 16.67 ₫
B8: Thanh toán cho xe cộ | C8: 4,000.00 ₫ | D8: =Chi_phí[[#This Row],[Hàng năm ]]/12 -> 333.33 ₫
B9: Tiền vay thế chấp/tiền thuê | C9: 15,000.00 ₫ | D9: =Chi_phí[[#This Row],[Hàng năm ]]/12 -> 1,250.00 ₫
B10: Bảo hiểm | C10: 250.00 ₫ | D10: =Chi_phí[[#This Row],[Hàng năm ]]/12 -> 20.83 ₫
B11: Điện | C11: 1,200.00 ₫ | D11: =Chi_phí[[#This Row],[Hàng năm ]]/12 -> 100.00 ₫
B12: Khí đốt | C12: 600.00 ₫ | D12: =Chi_phí[[#This Row],[Hàng năm ]]/12 -> 50.00 ₫
B13: Nước/rãnh thoát nước | C13: 600.00 ₫ | D13: =Chi_phí[[#This Row],[Hàng năm ]]/12 -> 50.00 ₫
B14: Rác | C14: 150.00 ₫ | D14: =Chi_phí[[#This Row],[Hàng năm ]]/12 -> 12.50 ₫
B15: Điện thoại | C15: 600.00 ₫ | D15: =Chi_phí[[#This Row],[Hàng năm ]]/12 -> 50.00 ₫
B16: Internet | C16: 600.00 ₫ | D16: =Chi_phí[[#This Row],[Hàng năm ]]/12 -> 50.00 ₫
B17: Bảo hiểm dành cho người khuyết tật | C17: 1,500.00 ₫ | D17: =Chi_phí[[#This Row],[Hàng năm ]]/12 -> 125.00 ₫
B18: Thực phẩm | C18: 5,000.00 ₫ | D18: =Chi_phí[[#This Row],[Hàng năm ]]/12 -> 416.67 ₫
B19: Trang phục | C19: 1,200.00 ₫ | D19: =Chi_phí[[#This Row],[Hàng năm ]]/12 -> 100.00 ₫
B20: Y tế/Nha khoa/Rx | C20: 600.00 ₫ | D20: =Chi_phí[[#This Row],[Hàng năm ]]/12 -> 50.00 ₫
B21: Khác 1 | C21: 0.00 ₫ | D21: =Chi_phí[[#This Row],[Hàng năm ]]/12 -> 0.00 ₫
B22: Khác 2 | C22: 0.00 ₫ | D22: =Chi_phí[[#This Row],[Hàng năm ]]/12 -> 0.00 ₫
B23: Tổng | C23: =SUBTOTAL(109,Chi_phí[[Hàng năm ]]) -> 46,500.00 ₫ | D23: =SUBTOTAL(109,Chi_phí[[Hàng tháng ]]) -> 3,875.00 ₫

Sheet Tự do
B1: DÒNG TIỀN CÁ NHÂN | F1: Hướng dẫn'!A1 | G1: Chi phí'!A1 | H1: Tự do'!A1 | I1: Tiết kiệm'!A1
C2: Tổng dòng tiền tính đến hiện tại: | D2: =Dòng_tiền_hàng_năm_cho_đến_nay -> 42,250.00 ₫ | F2: Đây là ước tính hàng năm. Sử dụng trang tính này nếu bạn muốn xem số tiền hàng năm với giá trị ước tính hàng tháng Nếu bạn muốn thêm các mục hàng ngày vào Bảng, hãy ước tính số tiền/giá trị hàng năm của chúng, rồi đặt giá trị vào cột Hàng năm.
B4: Chi phí | C4: Hàng năm | D4: Hàng tháng
B5: Ăn tối | C5: 1,200.00 ₫ | D5: =Tự_do[[#This Row],[Hàng năm ]]/12 -> 100.00 ₫
B6: Quà tặng | C6: 600.00 ₫ | D6: =Tự_do[[#This Row],[Hàng năm ]]/12 -> 50.00 ₫
B7: Đi lại | C7: 2,250.00 ₫ | D7: =Tự_do[[#This Row],[Hàng năm ]]/12 -> 187.50 ₫
B8: Giải trí | C8: 1,200.00 ₫ | D8: =Tự_do[[#This Row],[Hàng năm ]]/12 -> 100.00 ₫
B9: Chăm sóc cá nhân | C9: 300.00 ₫ | D9: =Tự_do[[#This Row],[Hàng năm ]]/12 -> 25.00 ₫
B10: Mua sắm | C10: 2,000.00 ₫ | D10: =Tự_do[[#This Row],[Hàng năm ]]/12 -> 166.67 ₫
B11: Khoản từ thiện | C11: 600.00 ₫ | D11: =Tự_do[[#This Row],[Hàng năm ]]/12 -> 50.00 ₫
B12: Câu lạc bộ/Tư cách thành viên | C12: 300.00 ₫ | D12: =Tự_do[[#This Row],[Hàng năm ]]/12 -> 25.00 ₫
B13: Cải tạo nhà | C13: 4,800.00 ₫ | D13: =Tự_do[[#This Row],[Hàng năm ]]/12 -> 400.00 ₫
B14: Khác 1 | C14: 0.00 ₫ | D14: =Tự_do[[#This Row],[Hàng năm ]]/12 -> 0.00 ₫
B15: Khác 2 | C15: 0.00 ₫ | D15: =Tự_do[[#This Row],[Hàng năm ]]/12 -> 0.00 ₫
B16: Tổng | C16: =SUBTOTAL(109,Tự_do[[Hàng năm ]]) -> 13,250.00 ₫ | D16: =SUBTOTAL(109,Tự_do[[Hàng tháng ]]) -> 1,104.17 ₫

Sheet Tiết kiệm
B1: DÒNG TIỀN CÁ NHÂN | F1: Hướng dẫn'!A1 | G1: Tự do'!A1 | H1: Tiết kiệm'!A1
C2: Tổng dòng tiền tính đến hiện tại: | D2: =Dòng_tiền_hàng_năm_cho_đến_nay -> 42,250.00 ₫ | F2: Đây là ước tính hàng năm. Sử dụng trang tính này nếu bạn muốn xem số tiền hàng năm với giá trị ước tính hàng tháng Nếu bạn muốn thêm các mục hàng ngày vào Bảng, hãy ước tính số tiền/giá trị hàng năm của chúng, rồi đặt giá trị vào cột Hàng năm.
B4: Tiết kiệm | C4: Hàng năm | D4: Hàng tháng
B5: Dự trữ tiền mặt | C5: 5,000.00 ₫ | D5: =Tiết_kiệm[[#This Row],[Hàng năm ]]/12 -> 416.67 ₫
B6: 401(k)/Etc | C6: 12,000.00 ₫ | D6: =Tiết_kiệm[[#This Row],[Hàng năm ]]/12 -> 1,000.00 ₫
B7: Khoản tiết kiệm/đầu tư | C7: 6,000.00 ₫ | D7: =Tiết_kiệm[[#This Row],[Hàng năm ]]/12 -> 500.00 ₫
B8: Khác 1 | C8: 0.00 ₫ | D8: =Tiết_kiệm[[#This Row],[Hàng năm ]]/12 -> 0.00 ₫
B9: Khác 2 | C9: 0.00 ₫ | D9: =Tiết_kiệm[[#This Row],[Hàng năm ]]/12 -> 0.00 ₫
B10: Tổng | C10: =SUBTOTAL(109,Tiết_kiệm[[Hàng năm ]]) -> 23,000.00 ₫ | D10: =SUBTOTAL(109,Tiết_kiệm[[Hàng tháng ]]) -> 1,916.67 ₫
